[Event "41st Eastman Open Ghent"]
[Site "Ghent"]
[Date "2018.07.18"]
[Round "9"]
[White "Arman, Deniz"]
[Black "Hunhdorf, Arnold"]
[Result "1-0"]
[ECO "B27"]
[WhiteElo "2366"]
[BlackElo "2234"]
[Annotator "NA"]
[PlyCount "71"]
[EventDate "2018.07.15"]
[EventCountry "BEL"]
[SourceTitle "playchess.com"]
[Source "ChessBase"]
[SourceQuality "1"]
[TimeControl "5400+30"]

1. e4 {[%emt 0:00:00]} c5 {[%emt 0:07:43]} 2. Nf3 {[%emt 0:00:07]} g6 {[%emt 0:00:14]} 3. d4 {[%emt 0:00:59]} cxd4 {[%emt 0:00:07]} 4. c3 {[%emt 0:00:11]} d3 {[%emt 0:00:14]} 5. Bxd3 {[%emt 0:00:07]} Bg7 {[%emt 0:00:10] B21: Sizilianisch (Morra-Gambit 2.d4 und 2.f4)} 6. c4 {[%emt 0:00:36]} d6 {[%emt 0:00:13]} 7. h3 {[%emt 0:00:31]} Nf6 {[%emt 0:00:10]} 8. Nc3 {[%emt 0:00:23] LiveBook: 8 Games} Nfd7 $146 {[%emt 0:00:33]} ({Vorgänger:} 8... O-O 9. O-O b6 10. Bg5 Bb7 11. Qd2 Nbd7 12. Rfe1 Rc8 13. Bh6 {½-½ (30) Esserman,M (2468)-Gopal,G (2579) Caleta 2017}) 9. Be3 {[%emt 0:34:18]} Bxc3+ {[%emt 0:00:24]} 10. bxc3 {[%emt 0:00:03]} Ne5 {[%emt 0:00:16]} 11. Nxe5 {[%emt 0:21:24]} dxe5 {[%emt 0:00:09]} 12. c5 {[%emt 0:02:03]} Qc7 {[%emt 0:26:07]} 13. Bc4 {[%emt 0:05:37]} Nd7 {[%emt 0:03:28]} 14. Qf3 {[%emt 0:06:10]} f6 {[%emt 0:01:10]} 15. Bh6 {[%emt 0:00:59]} Qxc5 {[%emt 0:05:26]} 16. Bb3 {[%emt 0:02:16]} e6 {[%emt 0:05:11]} 17. Bxe6 {[%emt 0:04:28]} Qe7 {[%emt 0:00:06]} 18. Bd5 {[%emt 0:02:51]} Nc5 {[%emt 0:01:31]} 19. O-O {[%emt 0:01:20]} Be6 {[%emt 0:00:12]} 20. Rfd1 {[%emt 0:08:09]} Kf7 {[%emt 0:02:00]} 21. Be3 {[%emt 0:00:51]} Rac8 {[%emt 0:09:17]} 22. Bxe6+ {[%emt 0:00:24]} Qxe6 {[%emt 0:00:51] [#]} 23. Rd5 $1 {[%emt 0:00:17]} b6 {[%emt 0:02:30]} 24. Rad1 {[%emt 0:00:02]} Rc7 {[%emt 0:04:15]} 25. Rd6 {[%emt 0:03:33]} Qe7 $18 {[%emt 0:00:04] [#]} 26. Bg5 $1 {[%emt 0:00:14]} Nxe4 {[%emt 0:04:01]} 27. Qxe4 {[%emt 0:00:04]} fxg5 {[%emt 0:00:06]} 28. Qg4 {[%emt 0:00:53]} h5 {[%emt 0:05:17]} 29. Qa4 {[%emt 0:00:03]} Qe8 {[%emt 0:00:36]} 30. Rd7+ {[%emt 0:00:23]} Rxd7 {[%emt 0:00:03]} 31. Rxd7+ {[%emt 0:00:07]} Ke6 {[%emt 0:01:40]} 32. Qc6+ {[%emt 0:00:10]} Kf5 {[%emt 0:00:08]} 33. Qf3+ {[%emt 0:00:04]} Ke6 {[%emt 0:00:11]} 34. Qd5+ {[%emt 0:00:01]} Kf6 {[%emt 0:00:14]} 35. g4 {[%emt 0:01:31]} hxg4 {[%emt 0:01:01]} 36. hxg4 {[%emt 0:00:03]} 1-0

[Event "41st Eastman Open Ghent"]
[Site "Ghent"]
[Date "2018.07.18"]
[Round "9"]
[White "Quillan, Gary"]
[Black "van der Linden, Hans"]
[Result "1-0"]
[ECO "B30"]
[WhiteElo "2349"]
[BlackElo "2117"]
[Annotator "NA"]
[PlyCount "143"]
[EventDate "2018.07.15"]
[EventCountry "BEL"]
[SourceTitle "playchess.com"]
[Source "ChessBase"]
[SourceQuality "1"]
[TimeControl "5400+30"]

1. e4 {[%emt 0:02:38]} c5 {[%emt 0:00:00]} 2. Nf3 {[%emt 0:00:08]} Nc6 {[%emt 0:00:00]} 3. Bb5 {[%emt 0:00:04]} Nf6 {[%emt 0:00:34]} 4. Nc3 {[%emt 0:00:08]} e5 {[%emt 0:00:12]} 5. Bxc6 {[%emt 0:04:16]} dxc6 {[%emt 0:00:08]} 6. Nxe5 {[%emt 0:00:29] B30: Sicilian: 2...Nc6 3 Bb5, lines without ...g6} Nxe4 {[%emt 0:00:38]} 7. Qh5 {[%emt 0:17:05]} ({Better is} 7. Nxe4 $14 Qd5 8. O-O Qxe5 9. Re1) 7... Nd6 {[%emt 0:00:17]} 8. O-O {[%emt 0:02:17]} Be7 {[%emt 0:02:50]} 9. Ne4 $146 {[%emt 0:10:12]} ({Predecessor:} 9. Nf3 Nf5 {½-½ (9) Kalinitschew,S (2431)-Klundt,K (2377) Berlin 2011}) 9... O-O {[%emt 0:00:47]} 10. Nxc5 {[%emt 0:02:10]} g6 {[%emt 0:03:14]} 11. Qf3 {[%emt 0:01:55]} Nf5 {[%emt 0:00:16]} 12. Nb3 {[%emt 0:01:53]} Be6 {[%emt 0:00:43]} 13. d3 {[%emt 0:01:52]} a5 {[%emt 0:01:54]} 14. c3 {[%emt 0:03:45]} Nh4 {[%emt 0:04:36]} 15. Qe2 {[%emt 0:01:15]} Bd5 {[%emt 0:02:27]} 16. f3 {[%emt 0:02:00]} a4 {[%emt 0:01:30]} 17. Nd2 {[%emt 0:02:29]} Bd6 {[%emt 0:01:04]} 18. Ng4 {[%emt 0:03:46]} h5 {[%emt 0:01:00]} 19. Ne3 {[%emt 0:01:28]} Re8 {[%emt 0:01:35]} 20. Ne4 {[%emt 0:02:59]} Nf5 {[%emt 0:01:28]} 21. Qf2 {[%emt 0:04:37]} Nxe3 {[%emt 0:05:15]} 22. Bxe3 {[%emt 0:00:17]} Be7 {[%emt 0:02:14]} 23. Rae1 {[%emt 0:08:49]} Bxa2 {[%emt 0:02:48]} 24. Bd4 {[%emt 0:00:15]} Be6 {[%emt 0:00:47]} 25. Qg3 {[%emt 0:03:05]} Ra5 {[%emt 0:00:38]} 26. Qf4 {[%emt 0:01:10]} g5 {[%emt 0:04:49]} 27. Qe3 {[%emt 0:00:42]} Rd5 {[%emt 0:04:06]} 28. Bb6 {[%emt 0:00:56]} Qb8 {[%emt 0:00:30]} 29. c4 {[%emt 0:01:04]} Rf5 {[%emt 0:00:43]} 30. Ng3 {[%emt 0:00:40]} Rf4 {[%emt 0:00:39]} 31. Nxh5 {[%emt 0:02:52]} Rh4 {[%emt 0:00:29]} 32. Ng3 {[%emt 0:00:09]} Qf4 {[%emt 0:00:57]} 33. Re2 {[%emt 0:04:09]} Bd6 {[%emt 0:03:07]} 34. Rfe1 {[%emt 0:01:09]} Ra8 {[%emt 0:01:48]} 35. Qxf4 {[%emt 0:06:01]} Bxf4 {[%emt 0:00:14]} 36. Ra1 {[%emt 0:00:32]} Kg7 {[%emt 0:01:09]} 37. Be3 {[%emt 0:01:14]} Rd8 {[%emt 0:00:46]} 38. Ra3 {[%emt 0:01:03]} (38. Bxf4 $16 gxf4 39. Ne4) 38... b5 {[%emt 0:00:31]} 39. cxb5 {[%emt 0:00:31]} cxb5 {[%emt 0:00:11]} 40. Bxf4 {[%emt 0:00:09]} gxf4 {[%emt 0:00:21]} 41. Ne4 {[%emt 0:02:18]} Rh5 {[%emt 0:01:09]} 42. Rc3 {[%emt 0:00:46]} b4 {[%emt 0:00:22]} 43. Rc5 {[%emt 0:00:11]} Rhd5 {[%emt 0:01:03]} 44. Rc1 {[%emt 0:02:59]} Rxd3 {[%emt 0:00:38]} 45. Nc5 {[%emt 0:02:03]} Rd1+ {[%emt 0:00:27]} 46. Re1 {[%emt 0:00:13]} Rxe1+ {[%emt 0:00:30]} 47. Rxe1 {[%emt 0:00:02]} Rd2 {[%emt 0:02:38]} 48. Nxa4 {[%emt 0:00:36]} Bb3 {[%emt 0:00:09]} 49. Nc5 {[%emt 0:00:11]} Rxb2 {[%emt 0:00:12]} 50. Nd3 {[%emt 0:00:14]} Rd2 {[%emt 0:00:48]} 51. Nxb4 {[%emt 0:00:10]} Rd4 {[%emt 0:00:49]} 52. Nc6 {[%emt 0:00:30]} Rd6 {[%emt 0:00:19]} 53. Ne5 {[%emt 0:00:25]} f6 {[%emt 0:00:36]} 54. Ng4 {[%emt 0:00:12]} Rd2 {[%emt 0:00:20]} 55. h4 {[%emt 0:02:37]} Kg6 {[%emt 0:00:46]} 56. Re8 {[%emt 0:01:23]} Bc4 {[%emt 0:01:20]} 57. Rf8 {[%emt 0:00:22]} Rd6 {[%emt 0:01:12]} 58. h5+ {[%emt 0:00:17]} Kxh5 {[%emt 0:01:16]} 59. Nxf6+ {[%emt 0:00:11]} Kg6 {[%emt 0:00:09]} 60. Ne4 {[%emt 0:00:37]} Rd1+ {[%emt 0:00:22]} 61. Kh2 {[%emt 0:00:09]} Bf7 {[%emt 0:00:28]} 62. Rb8 {[%emt 0:00:28]} Rd5 {[%emt 0:01:24]} 63. Rb6+ {[%emt 0:00:35]} Kg7 {[%emt 0:00:27]} 64. Nf2 {[%emt 0:00:40]} Rd2 {[%emt 0:00:53] [#]} 65. Nh3 $1 {[%emt 0:00:36]} Bd5 $2 {[%emt 0:00:29]} ({Lieber} 65... Rd4 $14) 66. Rd6 {[%emt 0:00:59]} Rd1 {[%emt 0:00:08]} 67. Nxf4 {[%emt 0:00:13]} Bxf3 {[%emt 0:00:21]} 68. Rg6+ {[%emt 0:00:07]} Kf7 {[%emt 0:00:16]} 69. gxf3 {[%emt 0:00:08]} Rd4 {[%emt 0:00:41]} 70. Rg4 $18 {[%emt 0:00:20]} Rd1 {[%emt 0:00:28]} 71. Kg3 {[%emt 0:00:14]} Kf6 {[%emt 0:00:09]} 72. Ng2 {[%emt 0:00:16]} 1-0

[Event "41st Eastman Open Ghent"]
[Site "Ghent"]
[Date "2018.07.18"]
[Round "9"]
[White "Lammens, Tim"]
[Black "Van Mechelen, Jan"]
[Result "1-0"]
[ECO "A04"]
[WhiteElo "2293"]
[BlackElo "2217"]
[Annotator "ChessBase"]
[PlyCount "73"]
[EventDate "2018.07.15"]
[EventCountry "BEL"]
[SourceTitle "playchess.com"]
[Source "ChessBase"]
[SourceQuality "1"]
[TimeControl "5400+30"]

1. Nf3 {[%emt 0:06:53]} f5 {[%emt 0:00:15]} 2. d3 {[%emt 0:00:22]} Nc6 {[%emt 0:00:14]} 3. e4 {[%emt 0:00:19]} e5 {[%emt 0:00:11]} 4. d4 {[%emt 0:00:25]} fxe4 {[%emt 0:02:29]} 5. Nxe5 {[%emt 0:01:55]} Nf6 {[%emt 0:01:50]} 6. Bc4 {[%emt 0:00:37]} d5 {[%emt 0:01:16]} 7. Bb5 {[%emt 0:00:03]} Bd7 {[%emt 0:04:09]} 8. c4 {[%emt 0:00:39]} a6 {[%emt 0:03:20]} 9. Ba4 {[%emt 0:05:41]} b5 {[%emt 0:11:06]} 10. Nxd7 {[%emt 0:08:07]} Qxd7 {[%emt 0:00:33]} 11. cxb5 {[%emt 0:00:43]} Nb4 {[%emt 0:00:45]} 12. bxa6 {[%emt 0:13:33]} Nd3+ {[%emt 0:01:30]} 13. Qxd3 {[%emt 0:02:40]} Qxa4 {[%emt 0:00:20]} 14. Qe2 {[%emt 0:00:56]} Bb4+ {[%emt 0:02:09]} 15. Bd2 {[%emt 0:01:03]} Bxd2+ {[%emt 0:01:28]} 16. Qxd2 {[%emt 0:07:11]} Qxa6 {[%emt 0:00:23]} 17. Nc3 {[%emt 0:00:13]} O-O {[%emt 0:00:31]} 18. Qe2 {[%emt 0:01:12]} Rfb8 {[%emt 0:11:43]} 19. Qxa6 {[%emt 0:04:13]} Rxa6 {[%emt 0:02:33]} 20. O-O-O {[%emt 0:00:11]} c6 {[%emt 0:05:56]} 21. Rhf1 {[%emt 0:05:20]} Ra7 {[%emt 0:06:17]} 22. b3 {[%emt 0:04:41]} Nh5 {[%emt 0:02:13]} 23. f3 {[%emt 0:02:48]} e3 {[%emt 0:00:17]} 24. Rfe1 {[%emt 0:01:57]} Re8 {[%emt 0:00:39]} 25. g3 {[%emt 0:03:32]} Rf7 {[%emt 0:02:36]} 26. f4 {[%emt 0:00:09]} Nf6 {[%emt 0:01:49]} 27. Rd3 {[%emt 0:04:11]} Rfe7 {[%emt 0:00:31]} 28. Re2 {[%emt 0:01:10]} Ng4 {[%emt 0:04:41]} 29. Nd1 {[%emt 0:01:49]} Nxh2 {[%emt 0:00:35]} 30. Rdxe3 {[%emt 0:01:27]} Rxe3 {[%emt 0:02:26]} 31. Rxe3 {[%emt 0:00:11]} Ra8 {[%emt 0:00:31]} 32. a4 {[%emt 0:01:38]} Kf7 {[%emt 0:01:01]} 33. Rc3 {[%emt 0:03:13]} Ra6 {[%emt 0:00:20]} 34. Nf2 {[%emt 0:00:39]} h5 {[%emt 0:00:28]} 35. Nd3 {[%emt 0:00:38]} Nf1 {[%emt 0:01:03]} 36. Nb4 {[%emt 0:00:38]} Rb6 {[%emt 0:00:12]} 37. Nxc6 {[%emt 0:00:11]} 1-0

[Event "41st Eastman Open Ghent"]
[Site "Ghent"]
[Date "2018.07.18"]
[Round "9"]
[White "Froeyman, Helmut"]
[Black "Dauw, Sterre"]
[Result "1/2-1/2"]
[ECO "B92"]
[WhiteElo "2290"]
[BlackElo "2192"]
[Annotator "NA"]
[PlyCount "117"]
[EventDate "2018.07.15"]
[EventCountry "BEL"]
[SourceTitle "playchess.com"]
[Source "ChessBase"]
[SourceQuality "1"]
[TimeControl "5400+30"]

1. e4 c5 {[%emt 0:03:35]} 2. Nf3 {[%emt 0:00:00]} d6 {[%emt 0:00:13]} 3. d4 {[%emt 0:00:00]} cxd4 {[%emt 0:00:06]} 4. Nxd4 {[%emt 0:00:00]} Nf6 {[%emt 0:00:07]} 5. Nc3 {[%emt 0:00:00]} a6 {[%emt 0:00:05]} 6. Be2 {[%emt 0:00:00]} e5 {[%emt 0:00:04]} 7. Nb3 {[%emt 0:00:00]} Be7 {[%emt 0:00:04]} 8. O-O {[%emt 0:00:02]} O-O {[%emt 0:00:08]} 9. Be3 {[%emt 0:00:04]} Be6 {[%emt 0:00:04]} 10. Nd5 {[%emt 0:00:07]} Bxd5 {[%emt 0:00:07]} 11. exd5 {[%emt 0:00:11]} Nbd7 {[%emt 0:00:07]} 12. c4 {[%emt 0:00:08]} Rc8 {[%emt 0:01:26]} 13. g3 $146 {[%emt 0:00:42] B92: Sicilian Najdorf: 6 Be2} ({Predecessor:} 13. Nd2 Ne8 14. b4 f5 15. f3 Bg5 16. Qb3 Qf6 17. Rfe1 Qh6 18. Bf1 Rf6 19. Rac1 Bxe3+ 20. Qxe3 Qh4 {1-0 (33) Voitsekhovsky,S (2503)-Sjugirov,S (2395) Voronezh 2007}) 13... Ne8 {[%emt 0:03:15]} 14. Qd2 {[%emt 0:00:56]} b6 {[%emt 0:00:12]} 15. Rae1 {[%emt 0:08:57]} a5 {[%emt 0:09:33]} 16. Na1 {[%emt 0:24:29]} g6 {[%emt 0:15:54]} 17. b3 {[%emt 0:02:08]} Ng7 {[%emt 0:03:35]} 18. Bg4 {[%emt 0:08:23]} f5 {[%emt 0:03:24]} 19. Bd1 {[%emt 0:02:38]} Ne8 {[%emt 0:11:15]} 20. f3 {[%emt 0:05:25]} Ng7 {[%emt 0:15:08]} 21. Nc2 {[%emt 0:05:49]} f4 {[%emt 0:03:39]} 22. gxf4 {[%emt 0:05:40]} Nf5 {[%emt 0:00:07]} 23. Bf2 {[%emt 0:05:32]} exf4 {[%emt 0:02:04]} 24. Qxf4 {[%emt 0:01:24]} Bg5 {[%emt 0:04:37]} 25. Qg4 {[%emt 0:09:55]} Ne5 {[%emt 0:01:04]} 26. Qe4 {[%emt 0:02:30]} Bd2 {[%emt 0:01:02]} 27. Re2 {[%emt 0:02:06]} Ng7 {[%emt 0:05:47]} 28. Be3 {[%emt 0:01:23]} Bxe3+ {[%emt 0:00:35]} 29. Qxe3 {[%emt 0:04:41]} Nh5 {[%emt 0:01:45]} 30. Nd4 {[%emt 0:03:31]} Nf4 {[%emt 0:01:03]} 31. Rd2 {[%emt 0:01:09]} Qg5+ {[%emt 0:02:54]} 32. Kh1 {[%emt 0:00:06]} Rce8 {[%emt 0:00:03]} 33. Rg1 {[%emt 0:02:06]} Qh4 {[%emt 0:02:15]} 34. Ne6 {[%emt 0:00:51]} Nxe6 {[%emt 0:02:58]} 35. dxe6 {[%emt 0:00:04]} Rxe6 {[%emt 0:00:08]} 36. Qxb6 {[%emt 0:02:28]} Nxf3 {[%emt 0:00:38]} 37. Bxf3 {[%emt 0:00:20]} Rxf3 {[%emt 0:00:04]} 38. Qc6 {[%emt 0:01:53]} ({Lieber} 38. Qxa5 $11 Re5 39. Qa8+ Rf8 40. Qg2) 38... Qe4 {[%emt 0:00:39]} 39. Qxe4 {[%emt 0:00:26]} Rxe4 {[%emt 0:00:06]} 40. Rg3 {[%emt 0:01:00]} Rf1+ {[%emt 0:00:50]} 41. Kg2 {[%emt 0:00:06]} Rfe1 {[%emt 0:01:12]} 42. Rgd3 {[%emt 0:00:13]} R1e2+ {[%emt 0:02:02]} 43. Kf3 {[%emt 0:00:28]} R4e3+ {[%emt 0:00:17]} 44. Rxe3 {[%emt 0:01:54]} Rxd2 {[%emt 0:00:05]} 45. Re2 {[%emt 0:00:09]} Rxe2 {[%emt 0:01:17]} 46. Kxe2 {[%emt 0:00:01]} Kf7 {[%emt 0:00:07]} 47. a3 {[%emt 0:00:47]} Ke6 {[%emt 0:00:28]} 48. b4 $11 {[%emt 0:00:39]} (48. Kd3 $18 Ke5 49. b4 axb4 50. axb4) 48... axb4 {[%emt 0:00:04]} 49. axb4 {[%emt 0:00:02]} d5 {[%emt 0:00:19]} 50. cxd5+ {[%emt 0:03:37]} Kxd5 {[%emt 0:00:09]} 51. Ke3 {[%emt 0:00:24]} Kc4 {[%emt 0:00:17]} 52. Kf4 {[%emt 0:00:05]} Kxb4 {[%emt 0:00:22]} 53. Kg5 {[%emt 0:00:01]} Kc5 {[%emt 0:00:17]} 54. Kh6 {[%emt 0:00:01]} Kd6 {[%emt 0:00:06]} 55. Kxh7 {[%emt 0:00:03]} g5 {[%emt 0:00:04]} 56. Kg6 {[%emt 0:00:41]} g4 {[%emt 0:00:05]} 57. Kg5 {[%emt 0:00:09]} Ke7 {[%emt 0:00:04]} 58. Kxg4 {[%emt 0:00:06]} Kf7 {[%emt 0:00:04]} 59. Kg5 {[%emt 0:00:09]} 1/2-1/2

[Event "41st Eastman Open Ghent"]
[Site "Ghent"]
[Date "2018.07.18"]
[Round "9"]
[White "Foisor, Sabina-Francesca"]
[Black "Zhurov, Sergey"]
[Result "1/2-1/2"]
[ECO "E63"]
[WhiteElo "2285"]
[BlackElo "2312"]
[Annotator "NA"]
[PlyCount "115"]
[EventDate "2018.07.15"]
[EventCountry "BEL"]
[SourceTitle "playchess.com"]
[Source "ChessBase"]
[SourceQuality "1"]
[TimeControl "5400+30"]

1. d4 {[%emt 0:08:00]} Nf6 {[%emt 0:00:00]} 2. Nf3 {[%emt 0:00:22]} g6 {[%emt 0:00:00]} 3. c4 {[%emt 0:00:21]} Bg7 {[%emt 0:00:00]} 4. Nc3 {[%emt 0:00:02]} O-O {[%emt 0:00:05]} 5. g3 {[%emt 0:00:02]} d6 {[%emt 0:00:08]} 6. Bg2 {[%emt 0:00:03]} Nc6 {[%emt 0:00:08]} 7. O-O {[%emt 0:00:05]} a6 {[%emt 0:00:05]} 8. Bf4 {[%emt 0:00:18]} h6 {[%emt 0:01:02] E63: King's Indian: Fianchetto: Panno Variation with 7...a6} (8... Rb8 9. Rc1 h6 10. d5 e5 11. Bd2 Ne7 12. e4 Nd7 13. Ne1 f5 14. Nd3 Nf6 15. f4 Nxe4 16. Nxe4 fxe4 17. Bxe4 exf4 18. Nxf4 {½-½ (56) Tregubov,P (2575)-Amin,B (2689) Riadh 2017}) 9. d5 {[%emt 0:07:52]} e5 {[%emt 0:05:58]} 10. dxc6 {[%emt 0:12:51]} exf4 {[%emt 0:00:41]} 11. Nd4 {[%emt 0:00:17]} b5 {[%emt 0:06:00]} 12. cxb5 {[%emt 0:03:57]} fxg3 $146 {[%emt 0:04:03]} ({Predecessor:} 12... axb5 13. Ndxb5 fxg3 14. hxg3 h5 15. Qd2 Re8 16. e4 h4 17. Qf4 hxg3 18. Qxg3 Ra6 19. f4 Nh5 20. Qf2 Rxc6 21. Na7 Rc4 22. Rad1 Bb7 23. Nab5 {½-½ (23) Tan,J (2451)-Hill,A (2237) Hastings 2016}) 13. hxg3 {[%emt 0:00:54]} (13. fxg3 $5 {[%cal Rb5b6]} axb5 14. Ndxb5 $11 (14. Ncxb5 Ng4 $11)) 13... axb5 {[%emt 0:00:18]} 14. Ncxb5 {[%emt 0:00:48]} Ng4 {[%emt 0:04:59]} 15. a4 {[%emt 0:03:17]} h5 {[%emt 0:01:25]} 16. Ra3 {[%emt 0:02:11]} Re8 {[%emt 0:08:42]} 17. e4 {[%emt 0:06:09]} Bh6 {[%emt 0:13:32]} 18. b4 {[%emt 0:06:37]} Rb8 {[%emt 0:02:39]} 19. Rb3 {[%emt 0:03:58]} Ra8 {[%emt 0:02:11]} 20. Ra3 {[%emt 0:03:39]} Re5 {[%emt 0:02:27]} 21. f4 {[%emt 0:03:12]} Re8 {[%emt 0:02:41]} 22. Bf3 {[%emt 0:02:11]} Nf6 {[%emt 0:02:23]} 23. Re1 {[%emt 0:11:03]} Rb8 {[%emt 0:09:14]} 24. Rb3 {[%emt 0:00:44]} Ra8 {[%emt 0:00:32]} 25. Nc3 {[%emt 0:00:39]} h4 {[%emt 0:00:49]} 26. e5 {[%emt 0:05:20]} dxe5 {[%emt 0:00:27]} 27. Ndb5 {[%emt 0:01:35]} Qe7 {[%emt 0:01:38]} 28. Rxe5 {[%emt 0:01:54]} Be6 {[%emt 0:00:05]} 29. Nd5 {[%emt 0:03:45]} Nxd5 {[%emt 0:03:03]} 30. Bxd5 {[%emt 0:00:00]} hxg3 {[%emt 0:03:19]} (30... Rad8 $1 $15 31. Rd3 hxg3 32. Bxe6 Qh4) 31. Rxg3 {[%emt 0:04:04]} Qh4 {[%emt 0:02:02]} 32. Qe1 {[%emt 0:00:01]} Kf8 {[%emt 0:01:53]} 33. Bxe6 {[%emt 0:02:38]} Bxf4 {[%emt 0:05:06]} 34. Rh3 {[%emt 0:01:10]} Qf6 {[%emt 0:03:50]} 35. Re4 {[%emt 0:01:30]} Rxe6 {[%emt 0:03:49]} 36. Rxe6 {[%emt 0:00:21]} fxe6 {[%emt 0:00:05]} 37. Qc3 {[%emt 0:01:02]} Qg5+ {[%emt 0:02:48] [#]} 38. Kh1 $2 {[%emt 0:00:54]} ({Only move:} 38. Kf2 $1 $18 Be5 39. Qe3 (39. Nxc7 $2 Kg8 $19) 39... Qxe3+ 40. Rxe3) 38... Be5 {[%emt 0:03:42]} 39. Qe3 {[%emt 0:00:45]} Qg4 {[%emt 0:00:43]} 40. a5 {[%emt 0:04:17] [#]} Kg8 $1 {[%emt 0:02:41]} 41. Qf3 {[%emt 0:00:54]} Qxb4 {[%emt 0:02:55]} 42. Qd3 {[%emt 0:00:04]} Qg4 {[%emt 0:00:33]} 43. Na3 {[%emt 0:00:52]} Bf6 {[%emt 0:01:39]} 44. Rg3 {[%emt 0:00:27]} Qh4+ {[%emt 0:00:03]} 45. Kg2 {[%emt 0:00:03]} Rd8 {[%emt 0:00:44]} 46. Qxg6+ {[%emt 0:00:40]} Kf8 {[%emt 0:00:08]} 47. Nc4 {[%emt 0:00:28]} Ke7 {[%emt 0:01:14]} 48. Rh3 {[%emt 0:00:34]} Qxc4 {[%emt 0:00:32]} 49. Rh7+ {[%emt 0:00:35]} Kd6 {[%emt 0:00:02]} 50. Qxf6 {[%emt 0:00:08]} Qxc6+ {[%emt 0:00:36]} 51. Kf2 {[%emt 0:00:27]} Qc5+ {[%emt 0:00:06]} 52. Ke2 {[%emt 0:00:16]} Qe5+ {[%emt 0:01:40]} 53. Qxe5+ {[%emt 0:00:05]} Kxe5 {[%emt 0:00:02]} 54. Rxc7 {[%emt 0:00:06]} Rd5 {[%emt 0:00:25]} 55. a6 {[%emt 0:00:30]} Ra5 {[%emt 0:00:20]} 56. a7 {[%emt 0:00:04]} Ke4 {[%emt 0:00:16]} 57. Rc4+ {[%emt 0:00:31]} Kd5 {[%emt 0:00:06]} 58. Rc7 $11 {[%emt 0:00:05]} 1/2-1/2

[Event "41st Eastman Open Ghent"]
[Site "Ghent"]
[Date "2018.07.18"]
[Round "9"]
[White "Middelhoven, Hein"]
[Black "Kett, Tim"]
[Result "0-1"]
[ECO "C44"]
[WhiteElo "2212"]
[BlackElo "2230"]
[Annotator "NA"]
[PlyCount "104"]
[EventDate "2018.07.15"]
[EventCountry "BEL"]
[SourceTitle "playchess.com"]
[Source "ChessBase"]
[SourceQuality "1"]
[TimeControl "5400+30"]

1. e4 {[%emt 0:00:00]} e5 {[%emt 0:00:00]} 2. Nf3 {[%emt 0:00:00]} Nc6 {[%emt 0:00:00]} 3. d4 {[%emt 0:00:09]} exd4 {[%emt 0:00:01]} 4. Nxd4 {[%emt 0:00:01]} Nf6 {[%emt 0:00:11]} 5. Nxc6 {[%emt 0:00:03]} bxc6 {[%emt 0:00:06]} 6. Bd3 {[%emt 0:00:20]} d5 {[%emt 0:03:37]} 7. Nc3 {[%emt 0:00:59]} Bb4 {[%emt 0:01:21]} 8. exd5 {[%emt 0:00:06]} cxd5 {[%emt 0:00:14]} 9. O-O {[%emt 0:00:06]} O-O {[%emt 0:00:13]} 10. h3 {[%emt 0:00:12] LiveBook: 601 Games} c6 {[%emt 0:06:26]} 11. Qf3 {[%emt 0:00:12]} Bd6 {[%emt 0:02:46]} 12. Bg5 {[%emt 0:00:39]} Rb8 {[%emt 0:01:09]} 13. Rab1 {[%emt 0:00:15]} Re8 {[%emt 0:02:04] C47: Schottisches Vierspringerspiel} (13... h6 14. Bf4 Be6 15. Ne2 c5 16. c3 Re8 17. Rfd1 Rb6 18. Bc2 Bxf4 19. Nxf4 Qb8 20. b3 a5 21. Re1 {1-0 (33) Dubov,D (2694)-Matlakov,M (2709) Moscow 2018}) 14. Ne2 {[%emt 0:01:27]} Be5 {[%emt 0:05:05]} 15. c3 {[%emt 0:02:27]} Qd6 {[%emt 0:00:46]} 16. Ng3 {[%emt 0:05:09]} h6 {[%emt 0:08:35]} 17. Be3 {[%emt 0:05:31]} c5 {[%emt 0:02:48]} 18. Nf5 {[%emt 0:13:50]} Bxf5 $146 {[%emt 0:00:25]} ({Vorgänger:} 18... Qc7 19. Qd1 Bh2+ 20. Kh1 Bf4 21. Qf3 {0-1 (52) Socko,M (2490)-Zaiatz,E (2441) Rogaska Slatina 2011}) 19. Qxf5 {[%emt 0:00:46]} Rb6 {[%emt 0:06:52]} 20. Rfd1 {[%emt 0:18:57]} a5 {[%emt 0:06:43]} 21. a4 {[%emt 0:09:20]} g6 {[%emt 0:09:08]} 22. Qf3 {[%emt 0:00:06]} Kg7 {[%emt 0:00:14]} 23. Bb5 {[%emt 0:00:51]} Rd8 {[%emt 0:07:49]} 24. Rd3 {[%emt 0:00:16]} Rbb8 {[%emt 0:03:58]} 25. Rbd1 {[%emt 0:00:18]} Qc7 {[%emt 0:00:44]} 26. Bc1 {[%emt 0:03:20]} Rb6 {[%emt 0:04:10]} 27. Re1 {[%emt 0:01:07]} Re6 {[%emt 0:02:20]} 28. Kf1 {[%emt 0:00:31]} Ne4 {[%emt 0:11:29]} ({Black should try} 28... c4 $17 29. Rdd1 Ne4 30. Rxd5 Rxd5 31. Rxe4 Qd6) 29. Qd1 {[%emt 0:06:11]} Bf4 {[%emt 0:04:23]} 30. g3 {[%emt 0:15:20]} Bxc1 {[%emt 0:01:14]} 31. Qxc1 {[%emt 0:00:02]} Rf6 {[%emt 0:00:16]} 32. f4 {[%emt 0:02:20]} c4 {[%emt 0:02:33]} 33. Rf3 {[%emt 0:04:37]} Ng5 {[%emt 0:01:42]} 34. Rfe3 {[%emt 0:01:37] [#]} Qc8 $1 {[%emt 0:00:52]} ({Less strong is} 34... Nxh3 35. Kg2 $15) 35. Kg1 {[%emt 0:00:57]} Nxh3+ {[%emt 0:01:14]} 36. Kg2 {[%emt 0:00:01]} Qg4 {[%emt 0:00:25]} 37. Rf3 {[%emt 0:01:48]} g5 {[%emt 0:01:02]} 38. Qe3 {[%emt 0:02:47]} Nxf4+ {[%emt 0:00:17]} 39. Kg1 {[%emt 0:00:16]} Re6 {[%emt 0:00:34]} 40. Qd4+ {[%emt 0:00:50]} Kg6 {[%emt 0:01:16]} 41. Rxe6+ {[%emt 0:00:27]} fxe6 {[%emt 0:00:09]} 42. Kf2 {[%emt 0:02:06]} Nh3+ {[%emt 0:03:54]} 43. Kg2 {[%emt 0:00:00]} Qxd4 {[%emt 0:00:18]} 44. cxd4 {[%emt 0:00:03]} g4 {[%emt 0:00:12]} 45. Re3 {[%emt 0:00:23]} Ng5 {[%emt 0:00:15]} 46. b3 {[%emt 0:00:31]} cxb3 $19 {[%emt 0:00:41]} 47. Rxb3 {[%emt 0:00:01]} Rc8 {[%emt 0:00:35]} 48. Bd3+ {[%emt 0:01:10]} Kf6 {[%emt 0:00:37]} 49. Kf2 {[%emt 0:02:15]} Rc1 {[%emt 0:00:43]} 50. Rb5 {[%emt 0:00:33]} Rd1 {[%emt 0:00:23]} 51. Ke2 {[%emt 0:00:04]} Rg1 {[%emt 0:00:07]} 52. Rxa5 {[%emt 0:00:26]} Rg2+ {[%emt 0:00:10]} 0-1